[Event "Titled Tuesday Blitz February 21 Late 2023"]
[White "Better_Chess_Faster"]
[Black "Huang, Alex"]
[BlackFideId "4302508"]
[WhiteElo "1982"]
[BlackElo "2009"]
[Result "0-1"]
[Round "05"]
[TimeControl "180+2"]
[Date "2023.02.21"]
[WhiteClock "0:01:19"]
[BlackClock "0:00:35"]

1. c4 {[%clk 0:03:00]}  e5 {[%clk 0:02:54]} 2. g3 {[%clk 0:03:00]}  d6 {[%clk 0:02:54]} 3. Bg2 {[%clk 0:02:59]}  f5 {[%clk 0:02:54]} 4. Nc3 {[%clk 0:02:59]}  Nf6 {[%clk 0:02:54]} 5. d4 {[%clk 0:02:59]}  e4 {[%clk 0:02:51]} 6. Bg5 {[%clk 0:02:58]}  Be7 {[%clk 0:02:49]} 7. f3 {[%clk 0:02:57]}  exf3 {[%clk 0:02:48]} 8. Nxf3 {[%clk 0:02:56]}  c6 {[%clk 0:02:48]} 9. O-O {[%clk 0:02:54]}  O-O {[%clk 0:02:48]} 10. Qd2 {[%clk 0:02:52]}  Ne4 {[%clk 0:02:41]} 11. Nxe4 {[%clk 0:02:50]}  fxe4 {[%clk 0:02:41]} 12. Bxe7 {[%clk 0:02:50]}  Qxe7 {[%clk 0:02:40]} 13. Ng5 {[%clk 0:02:43]}  Bf5 {[%clk 0:02:16]} 14. Rxf5 {[%clk 0:02:31]}  Rxf5 {[%clk 0:02:11]} 15. Nxe4 {[%clk 0:02:31]}  Nd7 {[%clk 0:02:05]} 16. Nc3 {[%clk 0:02:26]}  Raf8 {[%clk 0:01:57]} 17. e4 {[%clk 0:02:24]}  R5f6 {[%clk 0:01:53]} 18. Re1 {[%clk 0:02:18]}  Re8 {[%clk 0:01:31]} 19. b4 {[%clk 0:02:16]}  Nb6 {[%clk 0:01:30]} 20. Qd3 {[%clk 0:02:15]}  Qf7 {[%clk 0:01:19]} 21. c5 {[%clk 0:02:12]}  Qc4 {[%clk 0:01:02]} 22. Qxc4+ {[%clk 0:02:06]}  Nxc4 {[%clk 0:01:02]} 23. Bf1 {[%clk 0:01:53]}  Nd2 {[%clk 0:01:01]} 24. cxd6 {[%clk 0:01:47]}  Nf3+ {[%clk 0:00:59]} 25. Kf2 {[%clk 0:01:45]}  Nxe1+ {[%clk 0:00:59]} 26. Kxe1 {[%clk 0:01:45]}  Rxd6 {[%clk 0:00:59]} 27. d5 {[%clk 0:01:44]}  cxd5 {[%clk 0:00:58]} 28. Kf2 {[%clk 0:01:39]}  dxe4 {[%clk 0:00:54]} 29. Bc4+ {[%clk 0:01:38]}  Kh8 {[%clk 0:00:54]} 30. Ke3 {[%clk 0:01:38]}  Rc8 {[%clk 0:00:50]} 31. Nxe4 {[%clk 0:01:34]}  Rd1 {[%clk 0:00:38]} 32. Be6 {[%clk 0:01:26]}  Re8 {[%clk 0:00:34]} 33. Bc4 {[%clk 0:01:22]}  Re1+ {[%clk 0:00:34]} 34. Be2 {[%clk 0:01:18]}  Rxe2+ {[%clk 0:00:34]} 35. Kxe2 {[%clk 0:01:18]}  Rxe4+ {[%clk 0:00:35]} 36. Kd3 {[%clk 0:01:19]}  Rxb4 {[%clk 0:00:35]} 0-1


[Site "https://www.chess.com"]

[Event "Titled Tuesday Blitz February 21 Late 2023"]
[White "Tabatabaei, M. Amin"]
[Black "Naroditsky, Daniel"]
[WhiteFideId "12521213"]
[BlackFideId "2026961"]
[WhiteElo "2677"]
[BlackElo "2618"]
[Result "1-0"]
[Round "06"]
[TimeControl "180+2"]
[Date "2023.02.21"]
[WhiteClock "0:00:09"]
[BlackClock "0:00:05"]

1. d4 {[%clk 0:03:00]}  Nf6 {[%clk 0:03:00]} 2. c4 {[%clk 0:02:56]}  g6 {[%clk 0:03:00]} 3. Nc3 {[%clk 0:02:54]}  Bg7 {[%clk 0:03:00]} 4. e4 {[%clk 0:02:55]}  d6 {[%clk 0:03:01]} 5. Be2 {[%clk 0:02:55]}  O-O {[%clk 0:03:01]} 6. Be3 {[%clk 0:02:53]}  Nc6 {[%clk 0:03:01]} 7. d5 {[%clk 0:02:50]}  Ne5 {[%clk 0:03:02]} 8. f4 {[%clk 0:02:51]}  Neg4 {[%clk 0:03:01]} 9. Bd2 {[%clk 0:02:50]}  Nh6 {[%clk 0:03:00]} 10. Nf3 {[%clk 0:02:50]}  c6 {[%clk 0:02:58]} 11. a4 {[%clk 0:02:51]}  cxd5 {[%clk 0:02:54]} 12. cxd5 {[%clk 0:02:50]}  e6 {[%clk 0:02:32]} 13. dxe6 {[%clk 0:02:48]}  Bxe6 {[%clk 0:02:32]} 14. O-O {[%clk 0:02:43]}  d5 {[%clk 0:02:03]} 15. e5 {[%clk 0:02:01]}  Qb6+ {[%clk 0:01:42]} 16. Kh1 {[%clk 0:02:00]}  Ne4 {[%clk 0:01:40]} 17. a5 {[%clk 0:01:29]}  Nf2+ {[%clk 0:01:02]} 18. Kg1 {[%clk 0:01:25]}  Nh3+ {[%clk 0:01:02]} 19. Kh1 {[%clk 0:01:25]}  Nf2+ {[%clk 0:01:03]} 20. Kg1 {[%clk 0:01:17]}  Nxd1+ {[%clk 0:01:01]} 21. axb6 {[%clk 0:01:16]}  Nxc3 {[%clk 0:01:02]} 22. Bxc3 {[%clk 0:01:14]}  axb6 {[%clk 0:01:02]} 23. Nd4 {[%clk 0:01:09]}  Rfc8 {[%clk 0:00:48]} 24. h3 {[%clk 0:00:57]}  Nf5 {[%clk 0:00:42]} 25. Nxf5 {[%clk 0:00:57]}  Bxf5 {[%clk 0:00:37]} 26. Bf3 {[%clk 0:00:58]}  Be4 {[%clk 0:00:30]} 27. Bxe4 {[%clk 0:00:55]}  dxe4 {[%clk 0:00:31]} 28. Rxa8 {[%clk 0:00:44]}  Rxa8 {[%clk 0:00:31]} 29. Re1 {[%clk 0:00:44]}  Ra4 {[%clk 0:00:31]} 30. Rd1 {[%clk 0:00:45]}  Kf8 {[%clk 0:00:15]} 31. Rd7 {[%clk 0:00:28]}  e3 {[%clk 0:00:14]} 32. g3 {[%clk 0:00:28]}  Ke8 {[%clk 0:00:08]} 33. Rxb7 {[%clk 0:00:27]}  g5 {[%clk 0:00:02]} 34. f5 {[%clk 0:00:20]}  Re4 {[%clk 0:00:01]} 35. Rb8+ {[%clk 0:00:14]}  Kd7 {[%clk 0:00:01]} 36. f6 {[%clk 0:00:14]}  Bh6 {[%clk 0:00:01]} 37. Rb7+ {[%clk 0:00:11]}  Ke6 {[%clk 0:00:02]} 38. Re7+ {[%clk 0:00:11]}  Kf5 {[%clk 0:00:02]} 39. Rxf7 {[%clk 0:00:11]}  e2 {[%clk 0:00:03]} 40. Kf2 {[%clk 0:00:11]}  e1=Q+ {[%clk 0:00:02]} 41. Bxe1 {[%clk 0:00:12]}  Rxe5 {[%clk 0:00:02]} 42. Bc3 {[%clk 0:00:12]}  Re6 {[%clk 0:00:01]} 43. Rxh7 {[%clk 0:00:12]}  Kg6 {[%clk 0:00:02]} 44. Rb7 {[%clk 0:00:12]}  Bf8 {[%clk 0:00:03]} 45. Kf3 {[%clk 0:00:13]}  Bc5 {[%clk 0:00:03]} 46. Rg7+ {[%clk 0:00:12]}  Kh6 {[%clk 0:00:02]} 47. Rd7 {[%clk 0:00:08]}  Kg6 {[%clk 0:00:02]} 48. Rd3 {[%clk 0:00:07]}  b5 {[%clk 0:00:02]} 49. Rd5 {[%clk 0:00:07]}  Re3+ {[%clk 0:00:02]} 50. Kg2 {[%clk 0:00:07]}  Re2+ {[%clk 0:00:02]} 51. Kf1 {[%clk 0:00:08]}  Rf2+ {[%clk 0:00:02]} 52. Ke1 {[%clk 0:00:08]}  Be3 {[%clk 0:00:03]} 53. Re5 {[%clk 0:00:08]}  Ba7 {[%clk 0:00:01]} 54. Rxb5 {[%clk 0:00:09]}  Rf3 {[%clk 0:00:02]} 55. h4 {[%clk 0:00:08]}  gxh4 {[%clk 0:00:02]} 56. gxh4 {[%clk 0:00:09]}  Rh3 {[%clk 0:00:01]} 57. h5+ {[%clk 0:00:10]}  Rxh5 {[%clk 0:00:01]} 58. Rxh5 {[%clk 0:00:10]}  Kxh5 {[%clk 0:00:02]} 59. Ke2 {[%clk 0:00:11]}  Kg6 {[%clk 0:00:02]} 60. Kd3 {[%clk 0:00:12]}  Kf7 {[%clk 0:00:03]} 61. Kc4 {[%clk 0:00:12]}  Ke6 {[%clk 0:00:04]} 62. Kb5 {[%clk 0:00:12]}  Be3 {[%clk 0:00:04]} 63. Kc6 {[%clk 0:00:12]}  Bf4 {[%clk 0:00:02]} 64. b4 {[%clk 0:00:12]}  Bg3 {[%clk 0:00:01]} 65. b5 {[%clk 0:00:13]}  Bb8 {[%clk 0:00:01]} 66. b6 {[%clk 0:00:13]}  Bf4 {[%clk 0:00:02]} 67. b7 {[%clk 0:00:13]}  Bb8 {[%clk 0:00:02]} 68. Bd4 {[%clk 0:00:13]}  Bg3 {[%clk 0:00:01]} 69. Bb6 {[%clk 0:00:09]}  Bb8 {[%clk 0:00:02]} 70. Bc7 {[%clk 0:00:10]}  Ba7 {[%clk 0:00:02]} 71. Be5 {[%clk 0:00:09]}  Kf7 {[%clk 0:00:02]} 72. Kd7 {[%clk 0:00:09]}  Kg6 {[%clk 0:00:02]} 73. Ke6 {[%clk 0:00:08]}  Kh7 {[%clk 0:00:02]} 74. b8=Q {[%clk 0:00:08]}  Bxb8 {[%clk 0:00:02]} 75. Bxb8 {[%clk 0:00:08]}  Kg8 {[%clk 0:00:03]} 76. f7+ {[%clk 0:00:08]}  Kf8 {[%clk 0:00:03]} 77. Bd6+ {[%clk 0:00:08]}  Kg7 {[%clk 0:00:04]} 78. f8=Q+ {[%clk 0:00:09]}  Kh7 {[%clk 0:00:05]} 79. Qf7+ {[%clk 0:00:09]} 1-0


[Site "https://www.chess.com"]

[Event "Titled Tuesday Blitz February 21 Late 2023"]
[White "Vasquez Schroeder, Rodrigo"]
[Black "Nihal Sarin"]
[WhiteFideId "3400042"]
[BlackFideId "25092340"]
[WhiteElo "2524"]
[BlackElo "2673"]
[Result "1-0"]
[Round "06"]
[TimeControl "180+2"]
[Date "2023.02.21"]
[WhiteClock "0:00:19"]
[BlackClock "0:00:01"]

1. d4 {[%clk 0:03:00]}  Nf6 {[%clk 0:02:57]} 2. c4 {[%clk 0:02:59]}  g6 {[%clk 0:02:50]} 3. g3 {[%clk 0:02:56]}  c6 {[%clk 0:02:48]} 4. Bg2 {[%clk 0:02:55]}  d5 {[%clk 0:02:48]} 5. cxd5 {[%clk 0:02:55]}  cxd5 {[%clk 0:02:49]} 6. Nf3 {[%clk 0:02:55]}  Bg7 {[%clk 0:02:48]} 7. O-O {[%clk 0:02:53]}  O-O {[%clk 0:02:49]} 8. Ne5 {[%clk 0:02:53]}  e6 {[%clk 0:02:49]} 9. Nc3 {[%clk 0:02:52]}  Nfd7 {[%clk 0:02:47]} 10. f4 {[%clk 0:02:49]}  Nc6 {[%clk 0:02:40]} 11. Be3 {[%clk 0:02:40]}  Ndxe5 {[%clk 0:02:32]} 12. fxe5 {[%clk 0:02:29]}  f6 {[%clk 0:02:32]} 13. exf6 {[%clk 0:02:26]}  Bxf6 {[%clk 0:02:33]} 14. Qd2 {[%clk 0:02:26]}  Bd7 {[%clk 0:02:33]} 15. Rad1 {[%clk 0:02:21]}  Rc8 {[%clk 0:02:30]} 16. Kh1 {[%clk 0:02:20]}  Bg7 {[%clk 0:02:29]} 17. Bg5 {[%clk 0:02:13]}  Qb6 {[%clk 0:02:18]} 18. Rxf8+ {[%clk 0:02:03]}  Rxf8 {[%clk 0:01:47]} 19. e3 {[%clk 0:01:58]}  Na5 {[%clk 0:01:34]} 20. b3 {[%clk 0:01:54]}  Nc6 {[%clk 0:01:34]} 21. Na4 {[%clk 0:01:46]}  Qc7 {[%clk 0:01:30]} 22. Bf4 {[%clk 0:01:44]}  Qd8 {[%clk 0:01:30]} 23. Nc5 {[%clk 0:01:43]}  Bc8 {[%clk 0:01:30]} 24. Nd3 {[%clk 0:01:43]}  Bd7 {[%clk 0:01:06]} 25. h4 {[%clk 0:01:33]}  b6 {[%clk 0:01:06]} 26. Rc1 {[%clk 0:01:32]}  Qe7 {[%clk 0:01:02]} 27. Rc3 {[%clk 0:01:17]}  Rc8 {[%clk 0:01:02]} 28. Qc1 {[%clk 0:01:16]}  Qe8 {[%clk 0:01:02]} 29. Ne5 {[%clk 0:01:09]}  Nxe5 {[%clk 0:01:00]} 30. Bxe5 {[%clk 0:01:09]}  Bxe5 {[%clk 0:00:58]} 31. dxe5 {[%clk 0:01:09]}  Rc6 {[%clk 0:00:46]} 32. Kg1 {[%clk 0:01:04]}  Kg7 {[%clk 0:00:43]} 33. Bf1 {[%clk 0:00:42]}  h6 {[%clk 0:00:32]} 34. Bd3 {[%clk 0:00:38]}  Rxc3 {[%clk 0:00:20]} 35. Qxc3 {[%clk 0:00:37]}  Qf7 {[%clk 0:00:21]} 36. Qd4 {[%clk 0:00:32]}  g5 {[%clk 0:00:17]} 37. hxg5 {[%clk 0:00:32]}  hxg5 {[%clk 0:00:18]} 38. Qg4 {[%clk 0:00:31]}  Qe7 {[%clk 0:00:08]} 39. Qh5 {[%clk 0:00:31]}  Kg8 {[%clk 0:00:07]} 40. Kg2 {[%clk 0:00:25]}  Qg7 {[%clk 0:00:07]} 41. Kh3 {[%clk 0:00:23]}  Bc6 {[%clk 0:00:03]} 42. Kg4 {[%clk 0:00:20]}  Qxe5 {[%clk 0:00:04]} 43. Qxg5+ {[%clk 0:00:19]}  Qxg5+ {[%clk 0:00:05]} 44. Kxg5 {[%clk 0:00:19]}  Kg7 {[%clk 0:00:05]} 45. g4 {[%clk 0:00:18]}  e5 {[%clk 0:00:02]} 46. Kf5 {[%clk 0:00:19]}  e4 {[%clk 0:00:02]} 47. Be2 {[%clk 0:00:19]}  Bb7 {[%clk 0:00:01]} 48. g5 {[%clk 0:00:18]}  a5 {[%clk 0:00:01]} 49. a3 {[%clk 0:00:18]}  Bc6 {[%clk 0:00:01]} 50. b4 {[%clk 0:00:18]}  axb4 {[%clk 0:00:01]} 51. axb4 {[%clk 0:00:19]}  Bb7 {[%clk 0:00:02]} 52. Bh5 {[%clk 0:00:17]}  Bc6 {[%clk 0:00:02]} 53. Ke5 {[%clk 0:00:18]}  Bb7 {[%clk 0:00:02]} 54. Bd1 {[%clk 0:00:17]}  Ba8 {[%clk 0:00:03]} 55. Bb3 {[%clk 0:00:18]}  d4 {[%clk 0:00:02]} 56. Kxd4 {[%clk 0:00:18]}  Bc6 {[%clk 0:00:02]} 57. Bd5 {[%clk 0:00:18]}  Bd7 {[%clk 0:00:01]} 58. Bxe4 {[%clk 0:00:19]} 1-0


[Site "https://www.chess.com"]

[Event "Titled Tuesday Blitz February 21 Late 2023"]
[White "Caruana, Fabiano"]
[Black "Pichot, Alan"]
[WhiteFideId "2020009"]
[BlackFideId "110973"]
[WhiteElo "2764"]
[BlackElo "2638"]
[Result "1-0"]
[Round "06"]
[TimeControl "180+2"]
[Date "2023.02.21"]
[WhiteClock "0:00:08"]
[BlackClock "0:00:01"]

1. c4 {[%clk 0:03:00]}  Nf6 {[%clk 0:02:54]} 2. Nc3 {[%clk 0:03:00]}  e6 {[%clk 0:02:53]} 3. e4 {[%clk 0:03:00]}  d5 {[%clk 0:02:53]} 4. cxd5 {[%clk 0:02:59]}  exd5 {[%clk 0:02:54]} 5. e5 {[%clk 0:03:00]}  Ne4 {[%clk 0:02:54]} 6. Nf3 {[%clk 0:03:00]}  Be7 {[%clk 0:02:50]} 7. d4 {[%clk 0:02:59]}  c5 {[%clk 0:02:49]} 8. Bd3 {[%clk 0:02:57]}  Nxc3 {[%clk 0:02:48]} 9. bxc3 {[%clk 0:02:57]}  Qa5 {[%clk 0:02:46]} 10. Bd2 {[%clk 0:02:55]}  c4 {[%clk 0:02:44]} 11. Bc2 {[%clk 0:02:54]}  Nc6 {[%clk 0:02:44]} 12. h3 {[%clk 0:02:51]}  O-O {[%clk 0:02:44]} 13. a4 {[%clk 0:02:46]}  Be6 {[%clk 0:02:24]} 14. O-O {[%clk 0:02:45]}  Rab8 {[%clk 0:02:05]} 15. Qb1 {[%clk 0:02:31]}  g6 {[%clk 0:01:57]} 16. Qc1 {[%clk 0:02:30]}  Rfe8 {[%clk 0:01:56]} 17. Nh2 {[%clk 0:02:24]}  f5 {[%clk 0:01:48]} 18. exf6 {[%clk 0:02:21]}  Bxf6 {[%clk 0:01:49]} 19. Rb1 {[%clk 0:02:11]}  a6 {[%clk 0:01:34]} 20. Re1 {[%clk 0:02:08]}  b5 {[%clk 0:01:26]} 21. axb5 {[%clk 0:02:08]}  axb5 {[%clk 0:01:26]} 22. Bg5 {[%clk 0:01:49]}  Qd8 {[%clk 0:01:20]} 23. Nf3 {[%clk 0:01:44]}  Bxg5 {[%clk 0:00:56]} 24. Nxg5 {[%clk 0:01:42]}  Qf6 {[%clk 0:00:55]} 25. h4 {[%clk 0:01:30]}  Bd7 {[%clk 0:00:52]} 26. Rxe8+ {[%clk 0:01:29]}  Rxe8 {[%clk 0:00:52]} 27. Nf3 {[%clk 0:00:45]}  b4 {[%clk 0:00:44]} 28. Ba4 {[%clk 0:00:43]}  b3 {[%clk 0:00:42]} 29. Bxc6 {[%clk 0:00:37]}  Bxc6 {[%clk 0:00:41]} 30. Qd2 {[%clk 0:00:34]}  Bd7 {[%clk 0:00:39]} 31. Ne5 {[%clk 0:00:33]}  Bf5 {[%clk 0:00:39]} 32. Ra1 {[%clk 0:00:32]}  Qxh4 {[%clk 0:00:39]} 33. Ra7 {[%clk 0:00:20]}  Rb8 {[%clk 0:00:36]} 34. Qb2 {[%clk 0:00:19]}  Qe4 {[%clk 0:00:33]} 35. Kh2 {[%clk 0:00:16]}  Qf4+ {[%clk 0:00:29]} 36. g3 {[%clk 0:00:14]}  Qh6+ {[%clk 0:00:28]} 37. Kg1 {[%clk 0:00:14]}  Be4 {[%clk 0:00:23]} 38. f3 {[%clk 0:00:14]}  Qe3+ {[%clk 0:00:23]} 39. Kg2 {[%clk 0:00:14]}  Bf5 {[%clk 0:00:13]} 40. g4 {[%clk 0:00:14]}  Be6 {[%clk 0:00:11]} 41. Nc6 {[%clk 0:00:12]}  Rf8 {[%clk 0:00:11]} 42. Ne5 {[%clk 0:00:12]}  Qf4 {[%clk 0:00:03]} 43. Ra6 {[%clk 0:00:11]}  Bxg4 {[%clk 0:00:02]} 44. fxg4 {[%clk 0:00:08]}  Qf1+ {[%clk 0:00:02]} 45. Kg3 {[%clk 0:00:09]}  Qg1+ {[%clk 0:00:03]} 46. Kh4 {[%clk 0:00:08]}  Qh1+ {[%clk 0:00:02]} 47. Kg5 {[%clk 0:00:07]}  Kg7 {[%clk 0:00:02]} 48. Ra7+ {[%clk 0:00:07]}  Kg8 {[%clk 0:00:03]} 49. Qa3 {[%clk 0:00:06]}  h6+ {[%clk 0:00:02]} 50. Kxg6 {[%clk 0:00:06]}  Qe4+ {[%clk 0:00:03]} 51. Kh5 {[%clk 0:00:06]}  Qh1+ {[%clk 0:00:03]} 52. Kg6 {[%clk 0:00:06]}  Qe4+ {[%clk 0:00:03]} 53. Kxh6 {[%clk 0:00:06]}  Qf4+ {[%clk 0:00:04]} 54. Kh5 {[%clk 0:00:05]}  Qh2+ {[%clk 0:00:04]} 55. Kg6 {[%clk 0:00:06]}  Qc2+ {[%clk 0:00:03]} 56. Kg5 {[%clk 0:00:06]}  Qd2+ {[%clk 0:00:03]} 57. Kh5 {[%clk 0:00:07]}  Qh2+ {[%clk 0:00:03]} 58. Kg6 {[%clk 0:00:07]}  Qc2+ {[%clk 0:00:02]} 59. Kh6 {[%clk 0:00:08]}  Rf6+ {[%clk 0:00:01]} 60. Kg5 {[%clk 0:00:08]}  Rg6+ {[%clk 0:00:01]} 61. Nxg6 {[%clk 0:00:07]}  Qd2+ {[%clk 0:00:01]} 62. Nf4 {[%clk 0:00:08]} 1-0


[Site "https://www.chess.com"]

[Event "Titled Tuesday Blitz February 21 Late 2023"]
[White "Babazada, Khazar"]
[Black "Pakleza, Zbigniew"]
[WhiteFideId "13413554"]
[BlackFideId "1119290"]
[WhiteElo "2474"]
[BlackElo "2494"]
[Result "1-0"]
[Round "06"]
[TimeControl "180+2"]
[Date "2023.02.21"]
[WhiteClock "0:00:27"]
[BlackClock "0:00:02"]

1. Nf3 {[%clk 0:03:00]}  d5 {[%clk 0:02:59]} 2. g3 {[%clk 0:03:00]}  Nf6 {[%clk 0:02:59]} 3. Bg2 {[%clk 0:03:01]}  Bf5 {[%clk 0:02:59]} 4. O-O {[%clk 0:03:01]}  e6 {[%clk 0:03:00]} 5. d3 {[%clk 0:03:02]}  Be7 {[%clk 0:02:59]} 6. b3 {[%clk 0:03:02]}  h6 {[%clk 0:02:59]} 7. Bb2 {[%clk 0:03:03]}  O-O {[%clk 0:03:00]} 8. Nbd2 {[%clk 0:03:03]}  a5 {[%clk 0:02:59]} 9. a3 {[%clk 0:03:03]}  c6 {[%clk 0:03:00]} 10. Re1 {[%clk 0:03:02]}  Bh7 {[%clk 0:02:59]} 11. e4 {[%clk 0:03:03]}  Na6 {[%clk 0:02:59]} 12. Qe2 {[%clk 0:03:03]}  Qb6 {[%clk 0:02:50]} 13. Ne5 {[%clk 0:03:01]}  Rfd8 {[%clk 0:02:47]} 14. d4 {[%clk 0:03:00]}  Nd7 {[%clk 0:02:12]} 15. exd5 {[%clk 0:02:50]}  Nxe5 {[%clk 0:02:03]} 16. dxe6 {[%clk 0:02:48]}  Ng6 {[%clk 0:01:53]} 17. exf7+ {[%clk 0:02:14]}  Kf8 {[%clk 0:01:52]} 18. h4 {[%clk 0:01:55]}  Qc7 {[%clk 0:01:43]} 19. h5 {[%clk 0:01:54]}  Nh8 {[%clk 0:01:41]} 20. d5 {[%clk 0:01:37]}  Nxf7 {[%clk 0:01:33]} 21. dxc6 {[%clk 0:01:38]}  bxc6 {[%clk 0:01:34]} 22. Nc4 {[%clk 0:01:37]}  Nc5 {[%clk 0:01:22]} 23. Qg4 {[%clk 0:01:12]}  Bf6 {[%clk 0:01:14]} 24. Bxf6 {[%clk 0:01:12]}  gxf6 {[%clk 0:01:15]} 25. Qf3 {[%clk 0:01:10]}  Kg7 {[%clk 0:00:56]} 26. Qg4+ {[%clk 0:01:10]}  Kh8 {[%clk 0:00:52]} 27. Qh4 {[%clk 0:01:11]}  Kg7 {[%clk 0:00:45]} 28. Qg4+ {[%clk 0:01:07]}  Kh8 {[%clk 0:00:45]} 29. Qh4 {[%clk 0:01:08]}  Kg7 {[%clk 0:00:45]} 30. Ne3 {[%clk 0:00:50]}  Re8 {[%clk 0:00:34]} 31. Rad1 {[%clk 0:00:50]}  Rad8 {[%clk 0:00:32]} 32. Qg4+ {[%clk 0:00:50]}  Kh8 {[%clk 0:00:30]} 33. Qh4 {[%clk 0:00:47]}  Kg7 {[%clk 0:00:30]} 34. Qg4+ {[%clk 0:00:43]}  Kh8 {[%clk 0:00:30]} 35. Rxd8 {[%clk 0:00:44]}  Rxd8 {[%clk 0:00:28]} 36. Qc4 {[%clk 0:00:44]}  Ne4 {[%clk 0:00:16]} 37. Bxe4 {[%clk 0:00:43]}  Nd6 {[%clk 0:00:17]} 38. Qxc6 {[%clk 0:00:41]}  Qxc6 {[%clk 0:00:04]} 39. Bxc6 {[%clk 0:00:42]}  Rc8 {[%clk 0:00:05]} 40. Bd5 {[%clk 0:00:39]}  Nb5 {[%clk 0:00:05]} 41. c4 {[%clk 0:00:31]}  Nxa3 {[%clk 0:00:04]} 42. Ra1 {[%clk 0:00:32]}  Nc2 {[%clk 0:00:04]} 43. Rxa5 {[%clk 0:00:33]}  Nd4 {[%clk 0:00:04]} 44. b4 {[%clk 0:00:29]}  f5 {[%clk 0:00:03]} 45. b5 {[%clk 0:00:27]}  f4 {[%clk 0:00:03]} 46. gxf4 {[%clk 0:00:26]}  Ne2+ {[%clk 0:00:04]} 47. Kf1 {[%clk 0:00:26]}  Nxf4 {[%clk 0:00:05]} 48. Ra8 {[%clk 0:00:26]}  Bd3+ {[%clk 0:00:03]} 49. Ke1 {[%clk 0:00:26]}  Rxa8 {[%clk 0:00:04]} 50. Bxa8 {[%clk 0:00:26]}  Kg7 {[%clk 0:00:04]} 51. b6 {[%clk 0:00:27]}  Be4 {[%clk 0:00:01]} 52. Bxe4 {[%clk 0:00:27]}  Nd3+ {[%clk 0:00:02]} 53. Bxd3 {[%clk 0:00:27]} 1-0


[Site "https://www.chess.com"]

[Event "Titled Tuesday Blitz February 21 Late 2023"]
[White "Swiercz, Dariusz"]
[Black "Milikow, Yoav"]
[WhiteFideId "1126881"]
[BlackFideId "2822237"]
[WhiteElo "2637"]
[BlackElo "2394"]
[Result "1-0"]
[Round "06"]
[TimeControl "180+2"]
[Date "2023.02.21"]
[WhiteClock "0:00:46"]
[BlackClock "0:00:03"]

1. e3 {[%clk 0:02:57]}  d5 {[%clk 0:02:56]} 2. d4 {[%clk 0:02:57]}  Nf6 {[%clk 0:02:51]} 3. c4 {[%clk 0:02:57]}  e6 {[%clk 0:02:50]} 4. Nf3 {[%clk 0:02:57]}  Be7 {[%clk 0:02:48]} 5. b3 {[%clk 0:02:57]}  O-O {[%clk 0:02:48]} 6. Be2 {[%clk 0:02:57]}  dxc4 {[%clk 0:02:40]} 7. bxc4 {[%clk 0:02:57]}  c5 {[%clk 0:02:40]} 8. O-O {[%clk 0:02:57]}  Nc6 {[%clk 0:02:40]} 9. Bb2 {[%clk 0:02:58]}  cxd4 {[%clk 0:02:37]} 10. Nxd4 {[%clk 0:02:57]}  Bd7 {[%clk 0:02:36]} 11. Nd2 {[%clk 0:02:57]}  Rc8 {[%clk 0:02:35]} 12. Rc1 {[%clk 0:02:56]}  Qc7 {[%clk 0:02:18]} 13. N2f3 {[%clk 0:02:50]}  Rfd8 {[%clk 0:02:16]} 14. Qc2 {[%clk 0:02:48]}  Na5 {[%clk 0:02:00]} 15. Rfd1 {[%clk 0:02:44]}  Be8 {[%clk 0:01:50]} 16. Nb3 {[%clk 0:02:40]}  Nc6 {[%clk 0:01:42]} 17. Ng5 {[%clk 0:02:37]}  h6 {[%clk 0:01:27]} 18. Bxf6 {[%clk 0:02:32]}  hxg5 {[%clk 0:01:19]} 19. Bxe7 {[%clk 0:02:30]}  Nxe7 {[%clk 0:01:16]} 20. c5 {[%clk 0:02:25]}  Ba4 {[%clk 0:01:15]} 21. Qc4 {[%clk 0:02:19]}  Bxb3 {[%clk 0:01:09]} 22. axb3 {[%clk 0:02:20]}  b6 {[%clk 0:00:51]} 23. b4 {[%clk 0:02:06]}  bxc5 {[%clk 0:00:51]} 24. bxc5 {[%clk 0:02:06]}  Rxd1+ {[%clk 0:00:39]} 25. Bxd1 {[%clk 0:02:07]}  Nf5 {[%clk 0:00:28]} 26. g3 {[%clk 0:01:52]}  a5 {[%clk 0:00:20]} 27. Bg4 {[%clk 0:01:39]}  Ne7 {[%clk 0:00:19]} 28. Bf3 {[%clk 0:01:33]}  Nc6 {[%clk 0:00:19]} 29. Qa6 {[%clk 0:01:20]}  Nb4 {[%clk 0:00:18]} 30. Qb5 {[%clk 0:01:18]}  Nd5 {[%clk 0:00:07]} 31. Bxd5 {[%clk 0:01:12]}  exd5 {[%clk 0:00:08]} 32. c6 {[%clk 0:01:13]}  Qd8 {[%clk 0:00:03]} 33. Rc5 {[%clk 0:00:52]}  Qd6 {[%clk 0:00:02]} 34. Rxd5 {[%clk 0:00:48]}  Qxc6 {[%clk 0:00:03]} 35. Rd8+ {[%clk 0:00:48]}  Kh7 {[%clk 0:00:03]} 36. Qf5+ {[%clk 0:00:49]}  Kh6 {[%clk 0:00:03]} 37. Qxc8 {[%clk 0:00:46]} 1-0


[Site "https://www.chess.com"]

[Event "Titled Tuesday Blitz February 21 Late 2023"]
[White "Anton Guijarro, David"]
[Black "Koziorowicz, Michal"]
[WhiteFideId "2285525"]
[BlackFideId "21809194"]
[WhiteElo "2690"]
[BlackElo "2307"]
[Result "1-0"]
[Round "06"]
[TimeControl "180+2"]
[Date "2023.02.21"]
[WhiteClock "0:00:13"]
[BlackClock "0:00:28"]

1. e4 {[%clk 0:02:59]}  c5 {[%clk 0:02:59]} 2. Nf3 {[%clk 0:02:59]}  d6 {[%clk 0:02:59]} 3. Nc3 {[%clk 0:02:58]}  Nf6 {[%clk 0:02:59]} 4. d4 {[%clk 0:02:59]}  cxd4 {[%clk 0:03:00]} 5. Qxd4 {[%clk 0:02:58]}  Nc6 {[%clk 0:02:56]} 6. Qd3 {[%clk 0:02:58]}  g6 {[%clk 0:02:55]} 7. Nd5 {[%clk 0:02:58]}  Bg7 {[%clk 0:02:55]} 8. c3 {[%clk 0:02:58]}  O-O {[%clk 0:02:54]} 9. Be2 {[%clk 0:02:58]}  b6 {[%clk 0:02:45]} 10. Bg5 {[%clk 0:02:52]}  Nd7 {[%clk 0:02:40]} 11. O-O {[%clk 0:02:48]}  Re8 {[%clk 0:02:37]} 12. Rfd1 {[%clk 0:02:44]}  Bb7 {[%clk 0:02:36]} 13. Qe3 {[%clk 0:02:41]}  Rc8 {[%clk 0:02:32]} 14. h3 {[%clk 0:02:33]}  Nce5 {[%clk 0:02:29]} 15. Nd2 {[%clk 0:02:21]}  Nc5 {[%clk 0:02:11]} 16. a4 {[%clk 0:02:17]}  Ne6 {[%clk 0:02:00]} 17. Bh4 {[%clk 0:02:11]}  Nc7 {[%clk 0:01:29]} 18. Nb4 {[%clk 0:01:47]}  Nc6 {[%clk 0:01:22]} 19. Nxc6 {[%clk 0:01:42]}  Bxc6 {[%clk 0:01:23]} 20. a5 {[%clk 0:01:41]}  Ne6 {[%clk 0:01:22]} 21. axb6 {[%clk 0:01:34]}  Qxb6 {[%clk 0:01:23]} 22. Qxb6 {[%clk 0:01:32]}  axb6 {[%clk 0:01:24]} 23. Ra7 {[%clk 0:01:32]}  Kf8 {[%clk 0:01:21]} 24. f3 {[%clk 0:01:24]}  Ra8 {[%clk 0:01:13]} 25. Rda1 {[%clk 0:01:23]}  Bh6 {[%clk 0:00:58]} 26. Bxe7+ {[%clk 0:01:17]}  Kg7 {[%clk 0:00:51]} 27. Rxa8 {[%clk 0:01:15]}  Bxa8 {[%clk 0:00:48]} 28. Nc4 {[%clk 0:01:08]}  d5 {[%clk 0:00:43]} 29. Nd6 {[%clk 0:00:28]}  Rxe7 {[%clk 0:00:36]} 30. Rxa8 {[%clk 0:00:28]}  dxe4 {[%clk 0:00:37]} 31. fxe4 {[%clk 0:00:28]}  Nc5 {[%clk 0:00:37]} 32. Bf3 {[%clk 0:00:14]}  Bf4 {[%clk 0:00:34]} 33. Ne8+ {[%clk 0:00:14]}  Kh6 {[%clk 0:00:34]} 34. Nf6 {[%clk 0:00:13]}  Nd3 {[%clk 0:00:28]} 35. Ng8+ {[%clk 0:00:13]} 1-0


[Site "https://www.chess.com"]